[Event "44th Chess Olympiad Open 2022"]
[Site "Chennai"]
[Date "2022.08.03"]
[Round "6.39"]
[White "Matamoros Franco, Carlos S."]
[Black "Gong, Daniel Hanwen"]
[Result "1-0"]
[WhiteElo "2459"]
[BlackElo "2296"]
[Annotator "TA"]
[PlyCount "125"]
[EventDate "2022.??.??"]
[TimeControl "60"]

{[%evp 9,125,34,50,47,58,25,26,25,30,22,58,23,29,-7,66,-17,-17,-7,0,-15,0,0,0,
0,0,-14,-20,-40,-31,-42,-15,-18,-20,-32,-15,-21,-6,-123,-34,-31,0,0,74,15,20,0,
96,83,178,170,172,129,148,134,158,158,137,126,123,123,219,176,192,191,343,347,
306,302,498,467,404,387,311,251,284,239,246,124,129,125,128,127,123,125,115,98,
108,117,94,100,731,697,599,109,547,520,759,754,677,671,527,49,568,331,323,250,
1370,1363,1338,1316,1304,1233,975,894,29966,29967,12829,5163]} 1. Nf3 {[%emt 0:
00:00]} f5 {[%emt 0:00:07]} 2. c4 {[%emt 0:00:26]} Nf6 {[%emt 0:00:04]} 3. g3 {
[%emt 0:00:09]} e6 {[%emt 0:00:04]} 4. Bg2 {[%emt 0:00:07]} Be7 {[%emt 0:00:04]
} 5. b3 {[%emt 0:00:43]} d5 {[%emt 0:00:40]} 6. Bb2 {[%emt 0:00:24] A10:
English Opening: Unusual Replies for Black.} Nc6 {[%emt 0:00:26]} 7. e3 {
[%emt 0:01:51] [#] Inhibits d4.} dxc4 $146 {[%emt 0:07:18]} ({Predecessor:} 
7... O-O 8. O-O Qe8 9. d4 Qh5 10. Nbd2 Bd7 11. Ne5 Qe8 12. Nd3 Nb4 13. Nf3 Nxd3
14. Qxd3 {1-0 (50) Fortin,M-Bossuyt,H Belgium 1989}) 8. bxc4 {[%emt 0:01:03]
White has an edge.} Qd3 {[%emt 0:00:04]} 9. Bf1 {[%emt 0:00:32]} Qd8 {[%emt 0:
00:00]} 10. d4 {[%emt 0:05:39]} e5 {[%emt 0:19:43][%cal Yf5f4]} 11. dxe5 {
[%emt 0:21:44]} (11. Nxe5 Nxe5 12. dxe5 Qxd1+ 13. Kxd1 Ne4 $15) 11... Qxd1+ {
[%emt 0:10:02]} 12. Kxd1 {[%emt 0:00:04]} Ne4 {[%emt 0:00:06]} 13. Ke2 {
[%emt 0:00:56]} Be6 {[%emt 0:04:10]} 14. Nbd2 {[%emt 0:00:23]} O-O-O {[%emt 0:
00:00]} (14... Bb4 $5 {[%cal Re8c8]}) 15. Rc1 {[%emt 0:22:25]} Nxd2 {[%emt 0:
00:00]} 16. Nxd2 {[%emt 0:00:19]} Nb4 {[%emt 0:00:03]} 17. Ra1 {[%emt 0:30:12]}
Rd7 {[%emt 0:30:39] Black has compensation.} 18. Bh3 {[%emt 0:01:57]} Rhd8 {
[%emt 0:00:26]} 19. Bc3 {[%emt 0:01:16]} (19. Bd4 $2 Nc2 20. Rhc1 Nxa1 $19)
19... Nc2 {[%emt 0:03:12]} 20. Rac1 {[%emt 0:00:37]} Na3 {[%emt 0:00:04]} 21.
e4 {[%emt 0:08:00]} g6 {[%emt 0:00:12]} (21... Nxc4 22. exf5 Rxd2+ 23. Bxd2
Rxd2+ 24. Ke1 $14) 22. exf5 {[%emt 0:00:03]} gxf5 {[%emt 0:00:03]} 23. Ke1 {
[%emt 0:01:32]} (23. Rhd1 $1 $11) 23... Kb8 {[%emt 0:02:14]} ({Better is} 23...
b5 $17 {aiming for ...b4.} 24. c5 Bxc5) 24. Bf1 $15 {[%emt 0:00:07]} Bc5 {
[%emt 0:01:00]} 25. Be2 {[%emt 0:00:22]} Bd4 {[%emt 0:00:30]} (25... Bf8 $11 {
remains equal.}) 26. Bxd4 {[%emt 0:00:25]} (26. Nb3 $1 $16 {[%cal Rb3d4]})
26... Rxd4 $11 {[%emt 0:00:02]} 27. Nf3 {[%emt 0:00:34]} R4d7 {[%emt 0:02:23]}
(27... Re4 $11 {keeps the balance.}) 28. Kf1 $1 $16 {[%emt 0:00:12]} f4 {
[%emt 0:02:44]} (28... c6 $16) 29. Kg2 $18 {[%emt 0:00:36]} (29. gxf4 $6 Bh3+
30. Ke1 Bf5 $16) 29... Bf5 {[%emt 0:00:36]} 30. Rc3 {[%emt 0:01:27]} (30. gxf4
Rg7+ 31. Kf1 Rg4 $16) 30... Nb1 {[%emt 0:00:48]} 31. Rb3 {[%emt 0:00:47]} Nd2 {
[%emt 0:00:44]} 32. Nxd2 {[%emt 0:00:15]} Rxd2 {[%emt 0:00:02]} 33. Bf3 $36 {
[%emt 0:00:04] Keeping Black busy.} b6 {[%emt 0:00:01]} 34. Re1 {[%emt 0:00:55]
} (34. gxf4 $6 Rg8+ 35. Kf1 Be6 $11) 34... fxg3 {[%emt 0:03:01]} (34... Be6 $16
) 35. hxg3 {[%emt 0:00:10] Hoping for e6.} ({And not} 35. Kxg3 Rg8+ 36. Kf4 Rf8
$11) 35... Be6 {[%emt 0:00:02]} 36. Ra3 {[%emt 0:00:48]} Rc2 $2 {[%emt 0:00:36]
} (36... a5 {might work better.} 37. c5 Rb2) 37. Bd5 {[%emt 0:00:10]} Bxd5+ {
[%emt 0:00:49]} 38. cxd5 {[%emt 0:00:03]} Rxd5 $2 {[%emt 0:00:03] Endgame
KRR-KRR} (38... h5 39. e6 Rf8) 39. e6 {[%emt 0:01:15]} Rd8 {[%emt 0:00:02]} 40.
Rf3 {[%emt 0:01:10] And now e7 would win.} ({Less strong is} 40. e7 Re8 41. g4
h6 $18) 40... Re8 {[%emt 0:00:15]} 41. a3 {[%emt 0:30:29]} c5 {[%emt 0:32:26]}
42. Rf7 {[%emt 0:00:00] Rd7 is the strong threat.} Rd2 {[%emt 0:00:00]} 43. Rh1
{[%emt 0:00:00]} ({White should play} 43. Rxh7 $18 c4 44. g4) 43... Rxe6 $16 {
[%emt 0:02:35]} 44. Rhxh7 {[%emt 0:02:00] White wants to mate with Rh8+.} Rc6 {
[%emt 0:00:00]} 45. Rb7+ {[%emt 0:00:00]} ({Don't play} 45. Rxa7 $6 Rf6 $11)
45... Kc8 {[%emt 0:00:00]} 46. Rxa7 {[%emt 0:00:00][%cal Ra7a8]} Kb8 {[%emt 0:
00:00] Inhibits Ra8+.} 47. Rhb7+ {[%emt 0:00:00]} Kc8 {[%emt 0:00:00]} 48. Rf7
{[%emt 0:00:00][%cal Ra7a8] Prevents Rf6.} Kb8 {[%emt 0:00:00] Prevents Ra8+.}
49. Rae7 {[%emt 0:00:00]} c4 $2 {[%emt 0:00:00]} (49... Kc8 $16) 50. Rf8+ $1
$18 {[%emt 0:00:00]} Rc8 {[%emt 0:00:00] [#]} 51. Rxc8+ {[%emt 0:00:00]} Kxc8 {
[%emt 0:00:00] [#] KR-KR} 52. Re4 $1 {[%emt 0:00:00]} b5 {[%emt 0:00:00]} 53.
a4 $1 {[%emt 0:00:00]} Rd5 {[%emt 0:00:00]} 54. axb5 {[%emt 0:00:00]} Rc5 {
[%emt 0:00:00]} 55. Re2 $2 {[%emt 0:00:00]} (55. Kf1 $18 c3 56. Re1) 55... Rxb5
$2 {[%emt 0:00:00]} (55... Kb7 $14) 56. Rc2 {[%emt 0:00:00]} Rc5 {[%emt 0:00:
00]} 57. Kf3 {[%emt 0:00:00]} Kc7 $2 {[%emt 0:00:00]} (57... Kd7 58. Ke4 Rc8)
58. Ke4 {[%emt 0:00:00]} Kc6 {[%emt 0:00:00]} 59. Kd4 {[%emt 0:00:00]} Kb5 {
[%emt 0:00:00]} 60. f4 {[%emt 0:02:03]} Rc8 {[%emt 0:00:00]} 61. Rb2+ {[%emt 0:
00:14]} Ka4 {[%emt 0:00:00]} 62. Kc3 {[%emt 0:00:11]} Rg8 {[%emt 0:00:00]} 63.
Kxc4 {[%emt 0:00:10] Weighted Error Value: White=0.29 (precise) /Black=0.48}
1-0

[Event "44th Chess Olympiad Open 2022"]
[Site "Chennai"]
[Date "2022.08.03"]
[Round "6.39"]
[White "Bastidas Rodriguez, Emilio"]
[Black "Xie, Felix"]
[Result "1-0"]
[WhiteElo "2351"]
[BlackElo "2224"]
[Annotator "TA"]
[PlyCount "82"]
[EventDate "2022.??.??"]
[TimeControl "60"]

{[%evp 11,82,21,21,23,16,12,36,0,31,16,15,14,13,13,9,12,19,0,0,0,0,0,0,-27,-8,
-17,0,-32,-25,-29,12,-14,6,-9,25,35,43,29,56,-25,35,26,37,29,44,44,54,56,104,
110,118,127,114,55,153,102,125,96,148,150,138,141,131,125,150,93,227,252,294,
236,291,284,220]} 1. c4 {[%emt 0:00:02]} e6 {[%emt 0:00:12]} 2. d4 {[%emt 0:00:
00]} d5 {[%emt 0:00:14]} 3. Nc3 {[%emt 0:00:46]} Be7 {[%emt 0:00:15]} 4. Nf3 {
[%emt 0:00:21]} Nf6 {[%emt 0:00:08]} 5. a3 {[%emt 0:08:26]} b6 {[%emt 0:03:44]}
6. cxd5 {[%emt 0:04:23]} exd5 {[%emt 0:04:17]} 7. g3 {[%emt 0:00:17] E12:
Queen's Indian: Unusual White 4th moves, 4 a3, 4 Nc3 Bb7 5 a3 and 4 Nc3 Bb7 .}
O-O {[%emt 0:03:59]} 8. Bg2 {[%emt 0:00:14]} h6 {[%emt 0:00:48] [#]} 9. Qc2
$146 {[%emt 0:02:29] White is slightly better.} ({Predecessor:} 9. O-O Bb7 10.
Bf4 c5 11. Ne5 Na6 12. Rc1 Re8 13. Nb5 Bf8 14. g4 Re6 15. e3 Qe8 16. Nc3 Ne4
17. Nd3 cxd4 18. exd4 Rc8 19. Qb3 Nxc3 20. Rxc3 g5 21. Bg3 Rxc3 22. Qxc3 Rc6
23. Qd2 Re6 {½-½ (23) Ionescu,C (2465)-Kurajica,B (2585) Debrecen 1992}) 9...
Bb7 {[%emt 0:02:28]} 10. b4 {[%emt 0:01:13]} Nbd7 {[%emt 0:03:17]} 11. Rb1 {
[%emt 0:06:19]} Ne4 {[%emt 0:09:27]} 12. O-O {[%emt 0:03:29]} Nxc3 {[%emt 0:00:
00]} 13. Qxc3 {[%emt 0:00:07]} Bd6 {[%emt 0:00:06]} 14. Nh4 {[%emt 0:04:22]
[%cal Yf3h4,Yh4f5,Yf5e3,Ye3d1,Yd1f2]} Re8 {[%emt 0:02:18]} 15. Nf5 {[%emt 0:06:
57]} Bf8 {[%emt 0:05:41]} 16. Bf4 {[%emt 0:07:09]} c6 {[%emt 0:00:00]} 17. Rfe1
{[%emt 0:01:19]} Nf6 {[%emt 0:06:23]} 18. f3 {[%emt 0:01:10]} Kh7 {[%emt 0:06:
34]} 19. Qd2 {[%emt 0:06:17]} Bc8 {[%emt 0:03:41]} 20. Ne3 {[%emt 0:05:35]} g6
{[%emt 0:07:25]} 21. Rbc1 {[%emt 0:01:59]} Bb7 {[%emt 0:00:00]} 22. Nd1 {
[%emt 0:07:21]} (22. Nc2 $5 {[%cal Re2e4]}) 22... Bg7 {[%emt 0:00:00]} 23. Be5
{[%emt 0:00:21]} Qd7 {[%emt 0:04:29]} 24. Nf2 {[%emt 0:00:16]} Ba6 {[%emt 0:05:
12]} 25. g4 {[%emt 0:06:10]} ({Don't play} 25. Bxf6 Bxf6 26. e3 (26. Ng4 Bg7
$11) (26. Bh3 Qd6 $11) 26... h5 $11) (25. Bh3 $14 Qb7 26. e4 (26. Bxf6 Bxf6 27.
e3 Bg7 $11)) 25... Rad8 {[%emt 0:07:17]} (25... Bc4 $11) 26. e3 {[%emt 0:05:19]
} (26. a4 {with more complications.} Bc4 27. h4 b5 28. a5) 26... Ng8 {[%emt 0:
02:24]} 27. Bg3 {[%emt 0:00:15]} Ne7 {[%emt 0:04:35]} 28. Nd3 {[%emt 0:00:17]}
f5 {[%emt 0:04:21]} 29. Bh3 {[%emt 0:01:49]} Bxd3 {[%emt 0:00:00]} (29... Rf8
$14) 30. Qxd3 $16 {[%emt 0:00:04]} Rf8 {[%emt 0:00:18]} 31. gxf5 {[%emt 0:04:
09]} gxf5 {[%emt 0:00:42]} ({Not} 31... Nxf5 32. Rc2 $14) 32. Rc3 {[%emt 0:00:
43]} ({White should try} 32. a4 $16) 32... Rf6 {[%emt 0:01:04]} (32... Qe8 $14)
33. Kh1 {[%emt 0:00:20] White is more active.} (33. b5 $142) 33... Rg6 {
[%emt 0:00:32]} 34. Rec1 {[%emt 0:00:52]} Rf8 {[%emt 0:00:48]} ({Better is} 
34... Rg8) 35. b5 {[%emt 0:00:31]} c5 {[%emt 0:00:30] [#]} 36. dxc5 {[%emt 0:
00:30] R3c2 is the strong threat.} Bxc3 {[%emt 0:00:30]} 37. c6 {[%emt 0:00:30]
} Qe6 {[%emt 0:00:30] aiming for ...Be5.} (37... Nxc6 $2 38. bxc6 Rxc6 39. Rxc3
$18) 38. Rxc3 {[%emt 0:00:30]} (38. Qxc3 $142 Qf7 39. c7) 38... Nc8 {[%emt 0:
00:30] Loses the game.} (38... Qg8 $16 {was necessary.}) 39. Rc1 $18 {[%emt 0:
00:30] White has strong compensation.} Rgf6 {[%emt 0:00:00]} 40. Rd1 {[%emt 0:
00:30]} Ne7 {[%emt 0:00:30]} 41. Bh4 {[%emt 0:30:30]} R6f7 {[%emt 0:30:30]
Weighted Error Value: White=0.15 (very precise) /Black=0.24 (precise)} 1-0

[Event "44th Chess Olympiad Open 2022"]
[Site "Chennai"]
[Date "2022.08.03"]
[Round "6.39"]
[White "Croad, Nicolas"]
[Black "Mieles Palau, Daniel"]
[Result "0-1"]
[WhiteElo "2289"]
[BlackElo "2364"]
[Annotator "TA"]
[PlyCount "60"]
[EventDate "2022.??.??"]
[TimeControl "60"]

{[%evp 9,60,6,11,8,24,18,41,41,43,27,62,40,46,39,86,87,94,104,116,117,229,154,
164,148,156,150,198,198,292,307,371,189,163,78,84,-69,-69,-77,-10,-101,-110,
-193,-137,-926,-900,-29987,-29988,-29988,-29989,-29992,-29993,-29993,-29994]} 
1. e4 {[%emt 0:00:03]} c5 {[%emt 0:00:07]} 2. Nf3 {[%emt 0:00:05]} d6 {[%emt 0:
00:00]} 3. Bb5+ {[%emt 0:00:07]} Nd7 {[%emt 0:00:37]} 4. Ba4 {[%emt 0:01:21]}
a6 {[%emt 0:04:15]} 5. c4 {[%emt 0:00:11]} e5 {[%emt 0:00:17]} 6. Nc3 {[%emt 0:
00:00] B51: Sicilian: Moscow Variation (3 Bb5+) without 3...Bd7.} g6 {[%emt 0:
00:00]} 7. d3 {[%emt 0:04:18]} h6 {[%emt 0:10:17] [#]} 8. O-O $146 {[%emt 0:00:
00] White is slightly better.} ({Predecessor:} 8. g4 Bg7 9. h4 Ne7 10. Nh2 O-O
11. Nf1 f5 12. gxf5 gxf5 13. Bxd7 Bxd7 14. Ng3 {0-1 (21) Richmond,J (2084)
-James,D (2159) England 2014}) 8... Ne7 {[%emt 0:03:44]} 9. Ne1 {[%emt 0:06:42]
} g5 {[%emt 0:17:07] Prevents f4.} 10. g3 {[%emt 0:06:13]} Nc6 {[%emt 0:12:03]}
11. f4 {[%emt 0:03:04]} gxf4 {[%emt 0:03:57]} (11... exf4 $14 {might be
stronger.} 12. gxf4 Nb6) 12. gxf4 $16 {[%emt 0:00:26]} Rg8+ {[%emt 0:01:18]}
13. Kh1 {[%emt 0:03:19]} exf4 {[%emt 0:07:52]} 14. Nd5 {[%emt 0:06:33]} Nd4 {
[%emt 0:14:56]} (14... Nb6 $16) 15. Bxf4 {[%emt 0:28:28]} b5 {[%emt 0:00:05]}
16. cxb5 {[%emt 0:01:28]} axb5 {[%emt 0:00:05]} 17. Bb3 {[%emt 0:00:21]} Ne6 {
[%emt 0:04:44] Inhibits Nc7+.} (17... Ne5 $2 18. Bxe5 Bg4 19. Qc1 $1 Nxb3 20.
axb3 $18) (17... Nxb3 $16 18. Qxb3 (18. axb3 Rxa1 19. Qxa1 Nb6 $11) 18... Rg6)
18. Qf3 {[%emt 0:08:07][%cal Yf4d6] aiming for Bxd6!} Nd4 {[%emt 0:03:07]} (
18... Rg7 $142 19. Bxh6 Ne5) 19. Qf2 $1 $18 {[%emt 0:15:32]} (19. Qh5 Nf6 20.
Qd1 Bg4 $11) 19... Rg7 {[%emt 0:03:57]} 20. Bd1 {[%emt 0:03:29]} (20. Bxh6 Rh7
$18) (20. Nc2 $142 Nxc2 21. Bxh6 (21. Bxc2 Nf6 $18)) 20... Bb7 {[%emt 0:00:40]}
21. Bxh6 {[%emt 0:00:20]} (21. Nf3 $18) 21... Rh7 $16 {[%emt 0:00:05]} 22. Bh5
$2 {[%emt 0:00:51]} Bxd5 $15 {[%emt 0:03:01] The board is on fire.} (22... Bxh6
$2 23. Bxf7+ Kf8 24. Bg6+ (24. Bh5+ $2 Kg8 $19) 24... Kg8 25. Bxh7+ Kh8 26. Nf3
$1 $18) 23. exd5 {[%emt 0:00:23][%cal Rh5f7] [#]} (23. Bxf8 $2 Rxh5 24. Bxd6 (
24. exd5 $2 Rf5 $19) 24... Be6 $19) 23... Ne5 {[%emt 0:01:39]} ({But not} 23...
Bxh6 24. Bxf7+ Kf8 25. Bg6+ (25. Bh5+ $2 Kg8 $19) 25... Kg8 26. Bxh7+ Kxh7 27.
Qf7+ Kh8 28. Nf3 $14) (23... Qf6 $1 $17 {[%cal Rf6h6]} 24. Bxf8 (24. Qxf6 Nxf6
25. Rxf6 Bxh6 $17) 24... Qxf2 25. Rxf2 Kxf8) 24. Bxf8 {[%emt 0:01:57]} (24. Bf4
$11) 24... Kxf8 $17 {[%emt 0:01:24]} 25. Bf3 {[%emt 0:01:13]} (25. Bd1 $17 {
was worth a try.}) 25... Qg5 {[%emt 0:00:24]} ({Stronger than} 25... Nexf3 26.
Nxf3 Nxf3 27. Qxf3 $11) (25... Ra7 $19 {Hoping for ...f5.} 26. b4 f5) 26. Be4
$2 {[%emt 0:00:33] Prevents f5. Loses the game.} (26. Bd1 $17) 26... Ng4 $1 $19
{[%emt 0:00:04][%csl Yf2,Yh2] Pair of Knights!} 27. Qg3 {[%emt 0:00:00]} Rxh2+
{[%emt 0:00:14] Black mates.} 28. Qxh2 {[%emt 0:00:15]} Nxh2 {[%emt 0:00:05]}
29. Kxh2 {[%emt 0:01:44]} Ke7 {[%emt 0:00:14]} 30. Ng2 {[%emt 0:00:33]} Ne2 {
[%emt 0:00:06] Weighted Error Value: White=0.75/Black=0.25 (precise)} 0-1

[Event "44th Chess Olympiad Open 2022"]
[Site "Chennai"]
[Date "2022.08.03"]
[Round "6.39"]
[White "Duneas, John"]
[Black "Esmeraldas Huachi, Anderson"]
[Result "0-1"]
[WhiteElo "2031"]
[BlackElo "2071"]
[Annotator "NA RC"]
[PlyCount "114"]
[EventDate "2022.??.??"]
[TimeControl "60"]

1. d4 {[%emt 0:00:04]} d5 {[%emt 0:00:06]} 2. c4 {[%emt 0:00:05]} dxc4 {
[%emt 0:00:09]} 3. e3 {[%emt 0:00:39]} e6 {[%emt 0:00:24]} 4. Bxc4 {[%emt 0:00:
00]} a6 {[%emt 0:00:12]} 5. Nf3 {[%emt 0:03:58]} Nf6 {[%emt 0:00:07]} 6. O-O {
[%emt 0:01:07]} c5 {[%emt 0:00:13]} 7. Nc3 {[%emt 0:01:49]} b5 {[%emt 0:01:14]}
8. Be2 {[%emt 0:01:05]} Bb7 {[%emt 0:00:42]} 9. a3 {[%emt 0:02:31]} Nbd7 {
[%emt 0:01:35]} 10. Nd2 {[%emt 0:05:39]} Be7 {[%emt 0:12:52]} 11. Bf3 {[%emt 0:
00:00]} Bxf3 {[%emt 0:00:19]} 12. Nxf3 {[%emt 0:00:54]} O-O {[%emt 0:01:42]}
13. Qe2 {[%emt 0:00:41]} Qb6 {[%emt 0:04:40]} 14. Rd1 {[%emt 0:00:59]} cxd4 {
[%emt 0:00:18]} 15. exd4 {[%emt 0:00:46]} Rfe8 {[%emt 0:00:39]} 16. Bg5 {
[%emt 0:01:38]} h6 {[%emt 0:02:31]} 17. Bh4 {[%emt 0:01:49]} Qb7 {[%emt 0:00:
00]} 18. Ne5 {[%emt 0:01:35]} Nb6 {[%emt 0:03:54]} 19. Rac1 {[%emt 0:06:53]}
Nfd5 {[%emt 0:11:07]} 20. Bxe7 {[%emt 0:01:02]} Nxc3 {[%emt 0:02:00]} 21. Rxc3
{[%emt 0:01:38]} Qxe7 {[%emt 0:01:16]} 22. Rdc1 {[%emt 0:10:50]} Rec8 {[%emt 0:
00:00]} 23. Rxc8+ {[%emt 0:06:28]} Rxc8 {[%emt 0:00:10]} 24. Rxc8+ {[%emt 0:00:
00]} Nxc8 {[%emt 0:00:06]} 25. Qc2 {[%emt 0:00:42]} Qb7 {[%emt 0:05:16]} 26.
Qc5 {[%emt 0:04:24]} Ne7 {[%emt 0:00:25]} 27. h3 {[%emt 0:02:07]} Nf5 {[%emt 0:
00:00]} 28. Nc6 {[%emt 0:03:02]} Qd7 {[%emt 0:07:02]} 29. b4 {[%emt 0:18:47]}
g6 {[%emt 0:06:48]} 30. Kf1 {[%emt 0:00:35]} Qb7 {[%emt 0:05:13]} 31. d5 {
[%emt 0:09:21]} exd5 {[%emt 0:00:06]} 32. Qxd5 {[%emt 0:00:32]} Kh7 {[%emt 0:
00:00]} 33. Kg1 {[%emt 0:03:19]} Ng7 {[%emt 0:06:58]} 34. Qd6 {[%emt 0:00:38]}
Ne8 {[%emt 0:01:31]} 35. Qc5 {[%emt 0:00:20]} Qc7 {[%emt 0:00:37]} 36. Qd5 {
[%emt 0:03:16]} Nd6 {[%emt 0:01:39]} 37. Ne5 {[%emt 0:02:42]} Kg7 {[%emt 0:00:
00]} 38. Ng4 {[%emt 0:01:16]} Nf5 {[%emt 0:00:43]} 39. Qd2 {[%emt 0:01:07]} Qd6
{[%emt 0:01:02]} 40. Qc3+ {[%emt 0:00:39]} Qd4 {[%emt 0:00:10]} 41. Qxd4+ {
[%emt 0:33:16]} Nxd4 {[%emt 0:30:07]} 42. Ne3 {[%emt 0:00:28]} Kf6 {[%emt 0:00:
00]} 43. Kf1 {[%emt 0:01:14]} Ke5 {[%emt 0:01:08]} 44. Ke1 {[%emt 0:00:23]} f5
{[%emt 0:00:25]} 45. Kd2 {[%emt 0:00:46]} Ke4 {[%emt 0:01:44]} 46. Nd1 {
[%emt 0:00:00]} Nc6 {[%emt 0:00:00]} 47. Kc3 {[%emt 0:00:00]} h5 {[%emt 0:00:
00]} 48. Nb2 {[%emt 0:00:00]} Ne5 {[%emt 0:00:00]} 49. h4 {[%emt 0:00:00]} f4 {
[%emt 0:00:00]} 50. Nd1 {[%emt 0:00:00]} f3 {[%emt 0:00:00]} 51. g3 {[%emt 0:
00:00]} Ng4 {[%emt 0:00:00]} 52. Kd2 {[%emt 0:00:00]} Kd4 {[%emt 0:00:00]} 53.
Kc2 {[%emt 0:00:00]} Nxf2 {[%emt 0:00:00]} 54. Nxf2 {[%emt 0:00:00]} Ke3 {
[%emt 0:00:00]} 55. Nd1+ {[%emt 0:00:00]} Ke2 {[%emt 0:00:00]} 56. Nc3+ {
[%emt 0:00:00]} Ke1 {[%emt 0:00:00]} 57. Ne4 {[%emt 0:00:00]} f2 {[%emt 0:00:
00]} 0-1

[Event "44th Chess Olympiad Open 2022"]
[Site "Chennai"]
[Date "2022.08.03"]
[Round "6.40"]
[White "Greet, Andrew N"]
[Black "Kiriella, K G T S D.."]
[Result "1-0"]
[WhiteElo "2392"]
[BlackElo "1781"]
[Annotator "TA"]
[PlyCount "79"]
[EventDate "2022.??.??"]
[TimeControl "60"]

{[%evp 18,79,33,19,28,16,54,48,38,37,54,0,39,5,6,-18,-16,-18,-18,-19,-19,-21,
-19,-26,-30,-52,-26,-26,0,-31,-9,-12,-4,-16,6,9,7,-10,0,0,0,0,0,0,0,0,0,-72,
-80,-91,0,0,0,0,10,13,146,129,29978,29979,29979,29980,29978,29978]} 1. d4 {
[%emt 0:00:03]} Nf6 {[%emt 0:00:06]} 2. c4 {[%emt 0:00:11]} e6 {[%emt 0:00:04]}
3. Nf3 {[%emt 0:00:25]} Bb4+ {[%emt 0:00:07]} 4. Bd2 {[%emt 0:00:12]} Qe7 {
[%emt 0:00:07]} 5. g3 {[%emt 0:00:08]} Nc6 {[%emt 0:00:08]} 6. Nc3 {[%emt 0:00:
00]} Bxc3 {[%emt 0:00:07]} 7. Bxc3 {[%emt 0:00:03]} Ne4 {[%emt 0:00:06]} 8. Rc1
{[%emt 0:00:16]} Nxc3 {[%emt 0:00:34]} 9. Rxc3 {[%emt 0:00:06]} d6 {[%emt 0:00:
00]} 10. d5 {[%emt 0:01:33]} Nd8 {[%emt 0:03:33] E11: Bogo-Indian.} 11. dxe6 {
[%emt 0:01:30] was the old line (11.Bg2).} fxe6 {[%emt 0:03:21]} 12. Bg2 {
[%emt 0:00:16]} O-O {[%emt 0:00:47] White is slightly better.} 13. O-O {
[%emt 0:00:09][%cal Yc4c5]} Bd7 {[%emt 0:01:14]} 14. Nd4 {[%emt 0:03:23]} (14.
c5 $14) 14... e5 {[%emt 0:07:34]} 15. Nc2 {[%emt 0:00:29][%cal Yc4c5]} Bc6 {
[%emt 0:02:17] [#]} 16. Ne3 $146 {[%emt 0:09:05]} ({Predecessor:} 16. Bd5+ Kh8
17. Ne3 Ne6 {½-½ (17) Marovic,D-Parma,B Umag 1972}) 16... Bxg2 {[%emt 0:00:
00]} 17. Kxg2 {[%emt 0:00:05][%cal Yc4c5]} Ne6 {[%emt 0:03:43]} 18. f3 {
[%emt 0:11:47]} c6 {[%emt 0:08:30]} 19. Ng4 {[%emt 0:08:48]} Rad8 {[%emt 0:00:
00]} 20. Qc1 {[%emt 0:02:29]} Nd4 {[%emt 0:03:48]} 21. Re3 {[%emt 0:08:46]
[%cal Yc4c5]} h5 {[%emt 0:07:41]} 22. Nf2 {[%emt 0:00:29]} Nf5 {[%emt 0:01:09]}
(22... b6 {is more complex.} 23. Qd2 Qf7 24. b3 Qf5) 23. Rc3 {[%emt 0:04:18]}
d5 {[%emt 0:03:59]} 24. cxd5 {[%emt 0:01:08]} cxd5 {[%emt 0:00:05]} 25. Rc7 {
[%emt 0:01:17]} Rd7 {[%emt 0:00:17]} 26. Rxd7 {[%emt 0:00:08]} Qxd7 {[%emt 0:
00:00]} 27. Rd1 {[%emt 0:09:22]} (27. e4 {seems wilder.} Nd4 28. Qc5 Rxf3 29.
Qxd5+ Qf7 30. Qxf7+ Rxf7 31. Rc1) 27... Qb5 {[%emt 0:16:01]} 28. Rd3 {[%emt 0:
00:00]} d4 {[%emt 0:07:59]} 29. Ne4 {[%emt 0:03:28]} Ne3+ {[%emt 0:02:52]} 30.
Rxe3 {[%emt 0:10:27]} dxe3 {[%emt 0:00:05]} 31. Qxe3 {[%emt 0:00:05]} Qxb2 $11
{[%emt 0:03:52] Endgame KQR-KQN} 32. Ng5 {[%emt 0:04:00]} (32. Qd3 $1 $11 Qd4
33. Qb3+ Kh8 34. Qxb7) 32... Rf5 $17 {[%emt 0:06:29]} ({Don't play} 32... Qxa2
33. Qe4 Rd8 34. Qh7+ Kf8 35. Qf5+ Kg8 36. Qh7+ Kf8 37. Qf5+ Kg8 38. Qh7+ $11)
33. h4 {[%emt 0:00:10][%cal Yh2h4,Yh4g5,Yg5g6]} Qxa2 {[%emt 0:00:51]} (33...
Qc2 $17) 34. Qd3 $11 {[%emt 0:02:00]} Rxg5 {[%emt 0:00:00]} 35. hxg5 {[%emt 0:
00:22] g6 is the strong threat. KQ-KQ} Qf7 {[%emt 0:00:00]} 36. g6 {[%emt 0:02:
21] Qd8+ would kill now.} Qc7 {[%emt 0:00:15] Prevents Qd8+.} (36... Qf6 $11 {
remains equal.}) 37. Qf5 $16 {[%emt 0:01:06] White has strong compensation.
White is more active.} Qe7 $2 {[%emt 0:09:06] [#]} (37... e4 $16) 38. Qc8+ {
[%emt 0:00:18] White mates.} Qf8 {[%emt 0:00:04]} 39. Qe6+ {[%emt 0:00:13]} Kh8
{[%emt 0:00:14]} 40. Qxe5 {[%emt 0:00:10] Weighted Error Value: White=0.10 
(very precise) /Black=0.47} 1-0